Cogmind - Beta 13 @@@ ROGUE MODE // 2024.04.15 @ 21:33:27 Player: JackZewap Result: Destroyed by S-27 Virus with Autogun Performance ------------- Evolutions (3) 1500 Regions Visited (6) 1200 Robots Destroyed (58) 290 Value Destroyed (1839) 1839 Prototype IDs (25) 500 Alien Tech Used (0) 0 Bonus (300) 300 TOTAL SCORE: 5629 Bonus ------- Aligned with FarCom 300 Cogmind --------- Core Integrity 0/700 Matter 295/300 Energy 100/100 System Corruption 3% Temperature Cool (0) Movement Core (150) Ox2 Location -7/Factory Parts ------- > --- POWER (1) -------- (None) > --- PROPULSION (2) --- (None) > --- UTILITY (8) ------ Small Storage Unit Improved Melee Analysis Suite Improved Melee Analysis Suite Target Analyzer Target Analyzer > --- WEAPON (2) ------- Great Axe > --- INVENTORY (8) ---- Medium Treads Medium Treads Advanced Heat Sink Mini Assault Cannon Mini Assault Cannon Great Axe Peak State ------------ > --- POWER ------------ Heavy Ion Engine > --- PROPULSION ------- Armored Treads Medium Treads > --- UTILITY ---------- Advanced Heat Sink Small Storage Unit Improved Melee Analysis Suite Improved Melee Analysis Suite Target Analyzer Transmission Jammer Hardened Heavy Armor Plating > --- WEAPON ----------- Great Axe Great Axe > --- INVENTORY -------- Armored Treads Armored Treads Medium Treads Medium Treads Small Storage Unit Mini Assault Cannon Mini Assault Cannon Great Axe [Rating: 49] Favorites ----------- Power Heavy Ion Engine Engine Heavy Ion Engine Propulsion Armored Treads Treads Armored Treads Wheel Compact Wheel Utility Small Storage Unit Device Transmission Jammer Storage Small Storage Unit Processor Improved Melee Analysis Suite Hackware Hacking Suite Protection Improved Light Armor Plating Weapon Light Assault Rifle Energy Gun Heavy Laser Energy Cannon Guided Plasma Cannon Ballistic Gun Light Assault Rifle Ballistic Cannon Mini Assault Cannon Slashing Weapon Great Axe Build | -11 -10 -10 -10 -9 -8 -7 ------- Run | Yrd Mat Min Exi Min Mat Fac Slots Evolved 6 | . . . . . 4 2 Power . | . . . . . . . Propulsion . | . . . . . . . Utility 6 | . . . . . 4 2 Weapon . | . . . . . . . Parts Attached 66 | 6 6 . 6 2 31 15 Power 7 | 1 3 . . . 2 1 Engine 7 | 1 3 . . . 2 1 Core . | . . . . . . . Reactor . | . . . . . . . Propulsion 16 | 2 . . 1 . 7 6 Treads 13 | . . . . . 7 6 Leg . | . . . . . . . Wheel 3 | 2 . . 1 . . . Hover . | . . . . . . . Flight . | . . . . . . . Utility 25 | 1 1 . 2 . 17 4 Device 8 | . . . 1 . 6 1 Storage 3 | 1 . . 1 . . 1 Processor 6 | . . . . . 4 2 Hackware 1 | . 1 . . . . . Protection 7 | . . . . . 7 . Artifact . | . . . . . . . Weapon 18 | 2 2 . 3 2 5 4 Energy Gun 3 | 1 . . . . 2 . Energy Cannon 1 | . . . 1 . . . Ballistic Gun 8 | 1 2 . 2 2 1 . Ballistic Cannon 1 | . . . . . . 1 Launcher . | . . . . . . . Special Weapon . | . . . . . . . Impact Weapon . | . . . . . . . Slashing Weapon 5 | . . . . . 2 3 Piercing Weapon . | . . . . . . . Special Melee Weapon . | . . . . . . . Unidentified Prototypes 4 | . 1 . 2 . . 1 Parts Lost 18 | . 1 . . . 9 8 Power 3 | . 1 . . . 1 1 Propulsion 5 | . . . . . 1 4 Utility 9 | . . . . . 7 2 Weapon 1 | . . . . . . 1 Highest Loss Streak 6 | . 1 . . . 4 6 To Critical Strikes . | . . . . . . . Average Slot Usage (%) 89 | . 97 100 94 100 91 77 Engine 9 | . 13 14 14 14 8 6 Treads 11 | . . . . . 17 13 Wheel 8 | . 28 28 28 28 . . Device 4 | . . . . . 6 6 Storage 9 | . 14 14 8 14 9 7 Processor 5 | . . . . . 1 21 Hackware 7 | . 12 14 14 14 8 . Protection 10 | . . . . . 20 5 Energy Gun 5 | . 12 . . . 7 . Ballistic Gun 9 | . 15 28 28 28 7 . Slashing Weapon 4 | . . . . . 3 14 Naked Turns . | . . . . . . . Heaviest Build 47 | 10 15 12 12 12 42 47 Greatest Support 56 | 32 32 32 32 26 56 56 Greatest Overweight (x) 4 | 2 . . . . 4 1 Average Overweight (x) . | . . . . . . . Largest Inventory Capacity 8 | 8 8 8 8 8 8 8 Average Capacity 7 | 7 8 8 6 8 8 8 Most Carried 8 | . 7 7 8 8 8 8 Average Carried 6 | . 2 7 6 8 7 7 Final Capacity 8 | 8 8 8 8 8 8 8 Final Carried 8 | . 7 7 8 8 5 6 Class Distribution -------------------- 65% | Mutant 28% | Gladiator 6% | Scavenger-Mutant Dominant Class ---------------- Mutant | -10/Materials Mutant | -10/Mines Mutant | -10/Exiles Scavenger-Mutant | -9/Mines Mutant | -8/Materials Gladiator | -7/Factory Resources | -11 -10 -10 -10 -9 -8 -7 ----------- Run | Yrd Mat Min Exi Min Mat Fac Matter Collected 1096 | 254 140 . . 54 472 176 Remotely . | . . . . . . . Salvage Created 2334 | . 435 . . 71 1193 635 Parts 137 | . 27 . . 9 67 34 Haulers Intercepted 4 | . . . . . 4 . Recyclers Shooed 1 | . . . . . 1 . Parts Field Recycled . | . . . . . . . Retrieved Matter . | . . . . . . . Parts Self-Destructed . | . . . . . . . Prevented . | . . . . . . . Kills | -11 -10 -10 -10 -9 -8 -7 ------- Run | Yrd Mat Min Exi Min Mat Fac Combat Hostiles Destroyed 45 | . 7 . . 4 21 13 Melee 13 | . . . . . 1 12 Guns 31 | . 7 . . 4 20 . AOE 1 | . . . . . . 1 Classes Destroyed 13 | . 4 . . 1 6 2 Worker 1 | . . . . . 1 . Tunneler 1 | . . . . . 1 . Hauler 4 | . . . . . 4 . Recycler 2 | . 1 . . . 1 . Operator 3 | . 2 . . . 1 . Watcher 2 | . 1 . . . 1 . Swarmer 10 | . . . . 4 6 . Grunt 23 | . 7 . . . 8 8 Brawler 1 | . . . . . 1 . Duelist 1 | . . . . . . 1 Sentry 6 | . . . . . 5 1 Programmer 3 | . . . . . . 3 Heavy 1 | . . . . . 1 . Best Kill Streak 5 | . 2 . . 4 5 3 Combat Bots Only 4 | . 2 . . 4 3 3 Max Kills in Single Turn 2 | . 1 . . 1 2 1 Gunslinging . | . . . . . . . Exploded 1 | . . . . . . 1 Melee 1 | . . . . . 1 1 Uniques/NPCs Destroyed . | . . . . . . . Combat | -11 -10 -10 -10 -9 -8 -7 -------- Run | Yrd Mat Min Exi Min Mat Fac Hostile Shots Fired 421 | . 36 . . 14 135 236 Missed 124 | . 10 . . 2 44 68 Damage Taken 5009 | . 315 . . 92 1989 2613 Core 1221 | . 100 . . 21 386 714 Absorbed by Shields . | . . . . . . . Ignored by Resistances 125 | . . . . . 125 . Core Remaining (%) 60 | 100 . . . 51 29 . Volleys Fired 143 | . 68 . . 5 70 . Largest 2 | . 2 . . 2 2 . Hottest 138 | . 60 . . 40 138 . Shots Fired 283 | . 133 . . 10 140 . Gun 283 | . 133 . . 10 140 . Cannon . | . . . . . . . Launcher . | . . . . . . . Special . | . . . . . . . Kinetic 145 | . 79 . . 10 56 . Thermal 138 | . 54 . . . 84 . Explosive . | . . . . . . . Electromagnetic . | . . . . . . . Robot Hit Streak 12 | . 10 . . 2 12 . Robot Miss Streak 8 | . 8 . . 5 5 . Penetration Max . | . . . . . . . Secondary Targets 3 | . . . . . 3 . Max Gunslinging Chain 1 | . . . . . 1 . Shots Hit Robots 242 | . 77 . . 3 114 48 Core Hits 99 | . 26 . . 4 54 15 Critical Kills . | . . . . . . . Critical Parts Destroyed 1 | . . . . . 1 . Critical Strikes 13 | . . . . . 3 10 Burn 2 | . . . . . 2 . Destroy 1 | . . . . . 1 . Sever 10 | . . . . . . 10 Melee Attacks 98 | . . . . . 30 68 Impact . | . . . . . . . Slashing 98 | . . . . . 30 68 Piercing . | . . . . . . . Sneak Attacks 4 | . . . . . 2 2 Combat Hostiles . | . . . . . . . Follow-up Attacks 7 | . . . . . 2 5 Damage Inflicted 4900 | . 685 . . 34 2211 1970 Guns 2411 | . 685 . . 34 1692 . Cannons . | . . . . . . . Explosions . | . . . . . . . Melee 2489 | . . . . . 519 1970 Ramming . | . . . . . . . Kinetic 1024 | . 362 . . 34 628 . Thermal 1387 | . 323 . . . 1064 . Explosive . | . . . . . . . Electromagnetic . | . . . . . . . Impact . | . . . . . . . Slashing 2489 | . . . . . 519 1970 Piercing . | . . . . . . . Highest Corruption 11 | . . . . . 11 3 Average Corruption 5 | . . . . . 11 2 Corruption Purged . | . . . . . . . Corruption Blocked . | . . . . . . . Effects 22 | . . . . . 11 11 Message Errors 4 | . . . . . 2 2 Matter Fused 10 | . . . . . 5 5 Heat Flow Errors 1 | . . . . . . 1 Energy Discharges 4 | . . . . . 4 . Parts Rejected 1 | . . . . . . 1 Data Loss (minor) 2 | . . . . . . 2 Overload Shots . | . . . . . . . Overflow Damage 102 | . . . . . . 102 Projectiles . | . . . . . . . Explosions . | . . . . . . . Melee 102 | . . . . . . 102 Knockbacks . | . . . . . . . Impact . | . . . . . . . Kinetic . | . . . . . . . Secondary . | . . . . . . . Self-Inflicted Damage . | . . . . . . . Shots . | . . . . . . . Rammed 1 | . . . . . . 1 Targets Rammed 1 | . . . . . . 1 Kicked . | . . . . . . . Crushed . | . . . . . . . Highest Temperature 369 | . 76 . . . 369 116 Average Temperature 78 | . 20 . . . 115 32 Received Heat Transfer 1257 | . 195 . . . 432 630 Siege Activations . | . . . . . . . Robots Corrupted . | . . . . . . . Combat Hostiles . | . . . . . . . Parts Fried . | . . . . . . . Impact Corruptions . | . . . . . . . Robots Melted . | . . . . . . . Combat Hostiles . | . . . . . . . Parts Melted 6 | . . . . . 6 . Heat Transferred 2945 | . 725 . . . 2220 . Parts Sabotaged . | . . . . . . . Parts Stolen . | . . . . . . . Parts Stripped . | . . . . . . . Power Chain Reactions . | . . . . . . . Alert | -11 -10 -10 -10 -9 -8 -7 ------- Run | Yrd Mat Min Exi Min Mat Fac Peak Influence 234 | . 129 39 . 90 234 181 Initial 61 | . . 39 . . 35 61 Average 81 | . 31 39 . 86 92 99 Maximum Alert Level 1 | . . . . . 1 . Low Security (%) 94 | 100 100 100 . 100 88 100 Level 1 5 | . . . . . 11 . Level 2 . | . . . . . . . Level 3 . | . . . . . . . Level 4 . | . . . . . . . Level 5 . | . . . . . . . High Security . | . . . . . . . Max Security . | . . . . . . . Squads Dispatched 12 | . 3 . . . 3 6 Investigation 2 | . 1 . . . 1 . Extermination 2 | . . . . . . 2 Reinforcement 5 | . 2 . . . 2 1 Assault 1 | . . . . . . 1 Garrison 2 | . . . . . . 2 Intercept . | . . . . . . . Searches Triggered . | . . . . . . . Construction Impeded . | . . . . . . . Haulers Reinforced . | . . . . . . . Active Scanning Responses . | . . . . . . . Cargo Convoy Interrupts . | . . . . . . . Stealth | -11 -10 -10 -10 -9 -8 -7 --------- Run | Yrd Mat Min Exi Min Mat Fac Distress Signals 6 | . 1 . . . 4 1 Communications Jammed 32 | . . . . . . 32 Distress Signals 32 | . . . . . . 32 Times Spotted 76 | . 17 . . 3 33 23 Peak Tracking Total 8 | . 3 . . 2 5 8 Tactical Retreats 2 | . . . . . . 2 Traps | -11 -10 -10 -10 -9 -8 -7 ------- Run | Yrd Mat Min Exi Min Mat Fac Traps Triggered 4 | . . . . . 4 . Indirectly . | . . . . . . . Trap Hack Attempts . | . . . . . . . Triggered . | . . . . . . . Disarmed . | . . . . . . . Reprogrammed . | . . . . . . . Reused . | . . . . . . . Traps Extracted . | . . . . . . . Installed . | . . . . . . . Triggered . | . . . . . . . Machines | -11 -10 -10 -10 -9 -8 -7 ---------- Run | Yrd Mat Min Exi Min Mat Fac Machines Disabled 1 | . . . . . 1 . Max in Single Turn 1 | . . . . . 1 . Garrison Access 1 | . . . . . . 1 Machines Repaired . | . . . . . . . Machines Dismantled . | . . . . . . . Machines Sabotaged . | . . . . . . . Overloaded Fab Kills . | . . . . . . . Hacking | -11 -10 -10 -10 -9 -8 -7 --------- Run | Yrd Mat Min Exi Min Mat Fac Machines Accessed 17 | . 4 . 5 . 5 3 Terminals 9 | . 3 . . . 4 2 Fabricators 1 | . . . . . . 1 Repair Stations . | . . . . . . . Recycling Units 1 | . 1 . . . . . Scanalyzers 1 | . . . . . 1 . Garrison Access . | . . . . . . . Total Hacks 53 | . 8 . 30 . 10 5 Successful 45 | . 6 . 30 . 5 4 Failed 8 | . 2 . . . 5 1 Catastrophic 1 | . . . . . 1 . Database Lockouts . | . . . . . . . Manual 14 | . 3 . 1 . 7 3 Terminals 20 | . 7 . . . 9 4 Fabricators 1 | . . . . . . 1 Repair Stations . | . . . . . . . Recycling Units 1 | . 1 . . . . . Scanalyzers 1 | . . . . . 1 . Garrison Access . | . . . . . . . Terminal Hacks 37 | . 3 . 30 . 3 1 Record 29 | . . . 29 . . . Repair Station Index 1 | . . . . . 1 . Alert Level 2 | . . . . . 1 1 Unreport Threat 2 | . 1 . . . 1 . Locate Traps 2 | . 2 . . . . . Derelict Proto ID Bank 1 | . . . 1 . . . Fabricator Hacks 1 | . . . . . . 1 Network Status 1 | . . . . . . 1 Repair Station Hacks . | . . . . . . . Recycling Unit Hacks 1 | . 1 . . . . . Report Inventory 1 | . 1 . . . . . Scanalyzer 1 | . . . . . 1 . Insert Component 1 | . . . . . 1 . Garrison Access Hacks . | . . . . . . . Unauthorized Hacks 5 | . 2 . . . 1 2 Terminals 5 | . 2 . . . 1 2 Botnet 5 | . 2 . . . 1 2 Fabricators . | . . . . . . . Repair Stations . | . . . . . . . Recycling Units . | . . . . . . . Scanalyzers . | . . . . . . . Garrison Access . | . . . . . . . Data Cores Recovered . | . . . . . . . Used . | . . . . . . . Hacking Detections 9 | . 3 . . . 4 2 Full Trace Events 1 | . 1 . . . . . Feedback Events . | . . . . . . . Feedback Blocked . | . . . . . . . Robot Schematics Acquired . | . . . . . . . Robots Built . | . . . . . . . Authchips . | . . . . . . . Time . | . . . . . . . Total Robot Build Rating . | . . . . . . . Part Schematics Acquired . | . . . . . . . Parts Built . | . . . . . . . Authchips . | . . . . . . . Time . | . . . . . . . Total Part Build Rating . | . . . . . . . Parts Repaired . | . . . . . . . Time . | . . . . . . . Parts Recycled . | . . . . . . . Recycled Matter . | . . . . . . . Retrieved Matter . | . . . . . . . Retrieved Components . | . . . . . . . Parts Scanalyzed . | . . . . . . . Part Schematics Acquired . | . . . . . . . Parts Damaged . | . . . . . . . Bothacking | -11 -10 -10 -10 -9 -8 -7 ------------ Run | Yrd Mat Min Exi Min Mat Fac Used RIF Installer . | . . . . . . . Robots Hacked . | . . . . . . . Non-combat . | . . . . . . . Combat . | . . . . . . . Robot Hacks Applied . | . . . . . . . Relay Couplers Released 1 | . . . . . . 1 Machine Destruction 1 | . . . . . . 1 Fabnet Peak Effective % . | . . . . . . . Robots Rewired . | . . . . . . . Allies Hacked . | . . . . . . . Hacks Repelled . | . . . . . . . Allies | -11 -10 -10 -10 -9 -8 -7 -------- Run | Yrd Mat Min Exi Min Mat Fac Total Allies . | . . . . . . . Largest Group . | . . . . . . . Highest-Rated Group . | . . . . . . . Highest-Rated Ally . | . . . . . . . Total Orders 3 | . . . 2 . 1 . EXPLORE 2 | . . . 1 . 1 . RETURN 1 | . . . 1 . . . Ally Attacks . | . . . . . . . Total Damage . | . . . . . . . Kills . | . . . . . . . Allies Corrupted . | . . . . . . . Allies Melted . | . . . . . . . Intel | -11 -10 -10 -10 -9 -8 -7 ------- Run | Yrd Mat Min Exi Min Mat Fac Robot Analysis Total . | . . . . . . . Derelict Logs Recovered 1 | . . . . 1 . . Drone Launches 2 | . . . 1 . 1 . Drone Recoveries 1 | . . . 1 . . . Exploration | -11 -10 -10 -10 -9 -8 -7 ------------- Run | Yrd Mat Min Exi Min Mat Fac Turns Passed 4655 | 45 785 12 388 141 2191 1093 Spaces Moved 2323 | 38 503 13 362 138 823 446 Core 16 | 15 . . . . 1 . Treads 1258 | . . . . . 812 446 Legs . | . . . . . . . Wheels 1049 | 23 503 13 362 138 10 . Hover . | . . . . . . . Flight . | . . . . . . . Fastest Speed 50 | 50 100 100 90 90 90 160 Average Speed 137 | 94 100 100 96 90 167 179 Slowest Speed 250 | 150 100 100 100 90 250 250 Overloaded Moves . | . . . . . . . Propulsion Burnouts . | . . . . . . . Robots Hopped . | . . . . . . . Cave-ins Triggered 1 | . . . . . 1 . Exploration Rate (%) 39 | 4 70 3 91 31 67 10 Regions Visited 6 Branch Regions 3 Pre-discovered Areas 1 | . . . 1 . . . Known Exits Taken . | . . . . . . . Unknown Exits Taken 6 | 1 1 1 1 1 1 . Scrap Searched . | . . . . . . . Spaces Dug 9 | . . . . . 6 3 Terrain Destroyed 9 | . . . . . 6 3 Melee 9 | . . . . . 6 3 Projectile . | . . . . . . . AOE . | . . . . . . . Terrain Rammed . | . . . . . . . Walls Destroyed . | . . . . . . . Machines Disabled . | . . . . . . . Actions | -11 -10 -10 -10 -9 -8 -7 --------- Run | Yrd Mat Min Exi Min Mat Fac Total 3369 | 43 666 12 403 147 1462 636 Wait 679 | . 80 . 21 1 476 101 Move 2316 | 37 502 12 361 137 821 446 Hop . | . . . . . . . Pick Up 30 | . 7 . 6 . 12 5 Fast Attach 41 | 6 3 . 5 . 19 8 Attach 11 | . . . . . 6 5 Detach 7 | . 1 . . . 2 4 Swap 14 | . 3 . 1 2 6 2 Drop 44 | . 2 . 9 2 24 7 Fire 143 | . 68 . . 5 70 . Melee 82 | . . . . . 25 57 Ram . | . . . . . . . Kick . | . . . . . . . Crush 1 | . . . . . . 1 Escape Stasis 1 | . . . . . 1 . Rewire . | . . . . . . . Trap . | . . . . . . . Miscellaneous . | . . . . . . . Route ------- -11/Scrapyard -10/Materials (discovered 3 exits: [*Mat x2] / [*Min]) -10/Mines -10/Exiles (discovered 2 exits: [*Min x2]) -9/Mines -8/Materials -7/Factory (discovered 1 exit: *Low) History --------- Turn | Location | Event 3 | -11/Scrapyard | Discovered new exit (range 15) 46 | -11/Scrapyard | Entered Materials 314 | -10/Materials | Build established: Mutant 315 | -10/Materials | Discovered new exit (range 8) 634 | -10/Materials | Discovered new exit (range 9) 785 | -10/Materials | Discovered new exit (range 8) 831 | -10/Materials | Entered Mines 838 | -10/Mines | Deemed a non-threat by the Exiles lab entrance 839 | -10/Mines | Discovered new exit (range 5) 843 | -10/Mines | Entered Exiles 856 | -10/Exiles | Discovered new exit (range 15) 867 | -10/Exiles | Met 8R-AWN 885 | -10/Exiles | Met EX-HEX 912 | -10/Exiles | Met EX-BIN 930 | -10/Exiles | Aligned with FarCom system 931 | -10/Exiles | Given EX-Vault access code 968 | -10/Exiles | Opened EX-Vault 980 | -10/Exiles | Found Prototype Device 980 | -10/Exiles | Identified Supersonic Drone Bay 986 | -10/Exiles | Discovered new exit (range 58) 1012 | -10/Exiles | Found Prototype Energy Cannon 1012 | -10/Exiles | Identified Gui. Plasma Cannon 1080 | -10/Exiles | Warned to stay clear of 0b10 Research branches 1188 | -10/Exiles | Met EX-DEC 1193 | -10/Exiles | Learned location of Zion (-7) 1231 | -10/Exiles | Left Exiles lab with Supersonic Drone Bay 1231 | -10/Exiles | Entered Mines 1345 | -9/Mines | Discovered new exit (range 11) 1372 | -9/Mines | Entered Materials 1372 | -8/Materials | Evolved 4 slots: Utility x4 1381 | -8/Materials | Discovered new exit (range 81) 3259 | -8/Materials | Crushed by falling debris 3260 | -8/Materials | System corruption reached 10% 3290 | -8/Materials | Lost 3 parts (3u) 3498 | -8/Materials | Core integrity fell below 50% 3538 | -8/Materials | Lost 4 parts (1p1n2u) 3563 | -8/Materials | Entered Factory 3563 | -7/Factory | Evolved 2 slots: Utility x2 3564 | -7/Factory | Identified exit to Lower Caves 3710 | -7/Factory | Build established: Gladiator 4601 | -7/Factory | Core integrity fell below 50% 4639 | -7/Factory | Core integrity fell below 20% 4656 | -7/Factory | Destroyed by S-27 Virus with Autogun Last Messages --------------- 04615_ G-47 Trooper destroyed. 04615_ I-36 Angel distress signal jammed. 04619_ I-36 Angel Com. Wheel severed. 04619_ I-36 Angel distress signal jammed. 04624_ Transmission Jammer destroyed. 04625_ G-47 Trooper Imp. Heat Sink severed. 04628_ Critical hit (Burn: +37). 04629_ K-01 Serf collects debris. 04631_ Acquired 8 matter. 04633_ L-41 Fighter Imp. Deuterium Engine severed. 04635_ K-01 Serf collects debris. 04638_ Arm. Treads destroyed. 04638_ L-41 Fighter Carbon-fiber Leg severed. 04640_ Great Axe severed. 04641_ Slammed into L-41 Fighter. 04648_ Acquired Great Axe. 04652_ L-41 Fighter Carbon-fiber Leg severed. 04655_ L-41 Fighter destroyed. 04655_ Arm. Treads destroyed. [Achievement: Back For More] Map ----- +----------------------------------------------------+ | ?????????????????????????????????????????????????? | | ?????????????????????????????????????????????????? | | ?????????????????????????????????????????????????? | | ?????????????????????????????????????????????????? | | ?????????????????????????????????????????????????? | | ?????????????????????????????????????????????????? | | ?????????????????????????????????????????????????? | | ?????????????????????????????????????????????????? | | ?????????????????????????????????????????????????? | | ?????????????????????????????????????????????????? | | ?????????????????????????????????????????????????? | | ???????????????????????w?????????????????????????? | | ?????????????????????????????????????????????????? | | ???????????????????????i???##????????????????????? | | ??????????????????????? ???# ??????????????????? | | ??????????????????????? ???/ ""??????????????????? | | ??????????????????????? ???# ""????????#?????????? | | ??????????????????????? ???# ""???#??? #?????????? | | ??????????????????????# #???s ??!#?? #?????????? | | ?????????????????????? ??? ? #? #?????????? | | ?????????????????????? T ???#+##+## #?????????? | | ?????????????????????? s???# #?????????? | | ??????????????????????#g#???# #?????????? | | ??????????????????????# #???#=% #?????????? | | ??????????????????????#g#####%*= k #?????????? | | ??????????????????????#s%@*%==! k ku ???? | | ??????????????????????# ################# ???? | | ??????????????????????# #???#############????????? | | ??????????????????????# #???# #????????? | | ??????????????????????# #???#"" +????????? | | ??????????????????????# #???#"F """" ?????????? | | ??????????????????????# #???#"" """" #????????? | | ???????????+???########/#####"" """" #????????? | | ??????????? ???# = # """" #????????? | | ??????????? ??## # """" +????????? | | ??????????? ??## ! # * ["""" #????????? | | ??????????? ??## # !%= %"""" #????????? | | ??????????# #### # #????????? | | ??????????# + "# #????????? | | ??????????# #### # #????????? | | ??????????# ## # % % #% #????????? | | ??????????+ ## # "#############????????? | | ??????????# #### ##???????????????????? | | ??????????# ##"# #????????????????????? | | ??????????# + #????????????????????? | | ??????????# ##########+######????????????????????? | | ???######## #?###### ????????????????????? | | ???# # #??????# ?????????????????? | | ???# # #??????# ????????????????? | | ???# # ######## ????????????????? | +----------------------------------------------------+ Best States ------------- Heat Dissipation 45 Energy Generation 14 Energy Capacity 280 Matter Stores 300 Matter Capacity 300 Sight Range 16 Terrain Scan Density 10 Jamming Range 12 Base Temperature (-) 100 Armor Coverage 600 Resistance: KI 20 Evasion (%) 42 Melee Accuracy 12 Target Analysis 7 Recoil Reduction 2 Offensive Hacking 10 Item Schematics ----------------- None Robot Schematics ------------------ None Fabricated ------------ Nothing Alien Tech Used ----------------- None Achievements -------------- Back For More Challenges ------------ None Game ------ Seed RiotBombScrap Manual? 0 Play Time 00:32:44 Cumulative 43.1 hours Start 2024.04.15 @ 21:02:27 End 2024.04.15 @ 21:33:27 Sessions 1 Manual Loads 0 Difficulty Rogue Special Mode None Game No. 50 Rogue 44 Adventurer 6 Explorer 0 Win Type - Total 0 Types 0/0/0/0/0/0/0/0/0 Lore% 23 Gallery% 37 Achievement% 31 Wizard Run 0 Options --------- Layout 0 ASCII 0 Keyboard 1 Movement Numpad Keybinds 0 Fullscreen 0 Font 12/Smallcaps Map View 76x50 Zoom Use 0% Tactical HUD 1 Map Filters NONE Filters NONE Steam 1 RUN: 47b787e8-239e-4155-93ae-eb71bfc83907